[Event "Titled Tuesday Blitz May 4 2021"]
[White "The_filthy"]
[Black "Sargsyan, Anna M."]
[BlackFideId "13308130"]
[WhiteElo "2404"]
[BlackElo "2263"]
[Result "0-1"]
[Round "06"]
[TimeControl "180+1"]
[Date "2021.05.04"]
[WhiteClock "0:02:00"]
[BlackClock "0:02:21"]

1. e4 {[%clk 0:03:00]}  c6 {[%clk 0:02:59]} 2. Nf3 {[%clk 0:03:00]}  d5 {[%clk 0:02:59]} 3. Nc3 {[%clk 0:03:01]}  Bg4 {[%clk 0:02:54]} 4. h3 {[%clk 0:02:58]}  Bxf3 {[%clk 0:02:54]} 5. Qxf3 {[%clk 0:02:58]}  Nf6 {[%clk 0:02:55]} 6. d4 {[%clk 0:02:55]}  dxe4 {[%clk 0:02:54]} 7. Nxe4 {[%clk 0:02:55]}  Nbd7 {[%clk 0:02:52]} 8. Nc3 {[%clk 0:02:32]}  e6 {[%clk 0:02:49]} 9. Bd3 {[%clk 0:02:30]}  Bd6 {[%clk 0:02:48]} 10. Bg5 {[%clk 0:02:29]}  h6 {[%clk 0:02:48]} 11. Bh4 {[%clk 0:02:28]}  Qb6 {[%clk 0:02:46]} 12. O-O-O {[%clk 0:02:26]}  a5 {[%clk 0:02:40]} 13. Kb1 {[%clk 0:02:25]}  a4 {[%clk 0:02:39]} 14. Ka1 {[%clk 0:02:20]}  a3 {[%clk 0:02:39]} 15. b3 {[%clk 0:02:19]}  Qxd4 {[%clk 0:02:36]} 16. Bxf6 {[%clk 0:02:13]}  Qxf6 {[%clk 0:02:35]} 17. Be4 {[%clk 0:02:07]}  Be5 {[%clk 0:02:30]} 18. Rd3 {[%clk 0:02:05]}  Nc5 {[%clk 0:02:29]} 19. Re3 {[%clk 0:02:05]}  Nxe4 {[%clk 0:02:26]} 20. Qxe4 {[%clk 0:02:03]}  Bxc3+ {[%clk 0:02:26]} 21. Kb1 {[%clk 0:02:00]}  Bd2 {[%clk 0:02:21]} 0-1


[Site "https://www.chess.com"]

[Event "Titled Tuesday Blitz May 4 2021"]
[White "Tikhonov, Viacheslav"]
[Black "Maly, Alexey"]
[WhiteFideId "44196407"]
[BlackFideId "14103184"]
[WhiteElo "1773"]
[BlackElo "2314"]
[Result "1/2-1/2"]
[Round "06"]
[TimeControl "180+1"]
[Date "2021.05.04"]
[WhiteClock "0:00:20"]
[BlackClock "0:00:13"]

1. d4 {[%clk 0:03:00]}  d5 {[%clk 0:02:58]} 2. c4 {[%clk 0:03:01]}  dxc4 {[%clk 0:02:59]} 3. Nf3 {[%clk 0:03:00]}  Nf6 {[%clk 0:03:00]} 4. e3 {[%clk 0:03:00]}  e6 {[%clk 0:03:00]} 5. Bxc4 {[%clk 0:03:01]}  a6 {[%clk 0:03:01]} 6. a4 {[%clk 0:03:00]}  c5 {[%clk 0:03:01]} 7. Qe2 {[%clk 0:02:59]}  Nc6 {[%clk 0:03:01]} 8. O-O {[%clk 0:03:00]}  cxd4 {[%clk 0:03:01]} 9. Rd1 {[%clk 0:03:00]}  Be7 {[%clk 0:03:02]} 10. exd4 {[%clk 0:03:00]}  O-O {[%clk 0:03:02]} 11. Nc3 {[%clk 0:02:57]}  Nb4 {[%clk 0:03:02]} 12. Bg5 {[%clk 0:02:55]}  Nfd5 {[%clk 0:03:02]} 13. Bxe7 {[%clk 0:02:51]}  Nxe7 {[%clk 0:03:03]} 14. Ne5 {[%clk 0:02:37]}  b6 {[%clk 0:03:03]} 15. Rac1 {[%clk 0:02:29]}  Bb7 {[%clk 0:03:02]} 16. Bb3 {[%clk 0:02:16]}  Nbd5 {[%clk 0:03:02]} 17. Ne4 {[%clk 0:02:14]}  Nf5 {[%clk 0:03:00]} 18. Qg4 {[%clk 0:01:59]}  Qe7 {[%clk 0:02:49]} 19. Nc6 {[%clk 0:01:45]}  Bxc6 {[%clk 0:02:27]} 20. Rxc6 {[%clk 0:01:46]}  Nf6 {[%clk 0:02:15]} 21. Nxf6+ {[%clk 0:01:35]}  Qxf6 {[%clk 0:02:16]} 22. d5 {[%clk 0:01:32]}  Qxb2 {[%clk 0:02:13]} 23. Bc2 {[%clk 0:01:19]}  Ne7 {[%clk 0:01:48]} 24. Qh4 {[%clk 0:01:10]}  Ng6 {[%clk 0:01:43]} 25. Bxg6 {[%clk 0:01:09]}  hxg6 {[%clk 0:01:37]} 26. dxe6 {[%clk 0:01:09]}  fxe6 {[%clk 0:01:37]} 27. h3 {[%clk 0:01:02]}  Rf6 {[%clk 0:01:31]} 28. Rd7 {[%clk 0:00:58]}  Qa1+ {[%clk 0:01:20]} 29. Kh2 {[%clk 0:00:56]}  Qe5+ {[%clk 0:01:20]} 30. Qg3 {[%clk 0:00:53]}  Qxg3+ {[%clk 0:01:17]} 31. Kxg3 {[%clk 0:00:53]}  Raf8 {[%clk 0:01:15]} 32. Rxb6 {[%clk 0:00:51]}  Rxf2 {[%clk 0:01:09]} 33. Rxa6 {[%clk 0:00:44]}  R2f6 {[%clk 0:00:56]} 34. Raa7 {[%clk 0:00:40]}  Rb8 {[%clk 0:00:45]} 35. Rxg7+ {[%clk 0:00:40]}  Kf8 {[%clk 0:00:45]} 36. Rh7 {[%clk 0:00:41]}  Kg8 {[%clk 0:00:45]} 37. Rag7+ {[%clk 0:00:40]}  Kf8 {[%clk 0:00:45]} 38. Rh8+ {[%clk 0:00:38]}  Kxg7 {[%clk 0:00:45]} 39. Rxb8 {[%clk 0:00:39]}  e5 {[%clk 0:00:45]} 40. Rb3 {[%clk 0:00:36]}  Ra6 {[%clk 0:00:43]} 41. Ra3 {[%clk 0:00:37]}  Ra5 {[%clk 0:00:44]} 42. Kf3 {[%clk 0:00:36]}  Kf6 {[%clk 0:00:43]} 43. Ke4 {[%clk 0:00:37]}  g5 {[%clk 0:00:42]} 44. g3 {[%clk 0:00:35]}  Ke6 {[%clk 0:00:42]} 45. h4 {[%clk 0:00:35]}  gxh4 {[%clk 0:00:43]} 46. gxh4 {[%clk 0:00:36]}  Kf6 {[%clk 0:00:40]} 47. Kd3 {[%clk 0:00:34]}  Kf5 {[%clk 0:00:38]} 48. Kc4 {[%clk 0:00:32]}  e4 {[%clk 0:00:39]} 49. Kb4 {[%clk 0:00:32]}  Re5 {[%clk 0:00:38]} 50. a5 {[%clk 0:00:30]}  e3 {[%clk 0:00:38]} 51. Ra1 {[%clk 0:00:23]}  Re4+ {[%clk 0:00:34]} 52. Kc3 {[%clk 0:00:21]}  Rxh4 {[%clk 0:00:32]} 53. a6 {[%clk 0:00:20]}  Rh8 {[%clk 0:00:32]} 54. a7 {[%clk 0:00:20]}  Ra8 {[%clk 0:00:31]} 55. Ra6 {[%clk 0:00:19]}  Ke5 {[%clk 0:00:31]} 56. Kd3 {[%clk 0:00:19]}  Kd5 {[%clk 0:00:31]} 57. Kxe3 {[%clk 0:00:20]}  Kc5 {[%clk 0:00:31]} 58. Ra1 {[%clk 0:00:18]}  Kb6 {[%clk 0:00:31]} 59. Kd4 {[%clk 0:00:19]}  Rxa7 {[%clk 0:00:31]} 60. Rb1+ {[%clk 0:00:20]}  Kc7 {[%clk 0:00:30]} 61. Kc5 {[%clk 0:00:20]}  Ra5+ {[%clk 0:00:30]} 62. Kb4 {[%clk 0:00:20]}  Rg5 {[%clk 0:00:30]} 63. Rc1+ {[%clk 0:00:20]}  Kb6 {[%clk 0:00:30]} 64. Rc4 {[%clk 0:00:21]}  Rg1 {[%clk 0:00:30]} 65. Rh4 {[%clk 0:00:22]}  Rc1 {[%clk 0:00:29]} 66. Rh6+ {[%clk 0:00:21]}  Kc7 {[%clk 0:00:29]} 67. Kb5 {[%clk 0:00:21]}  Rb1+ {[%clk 0:00:29]} 68. Kc5 {[%clk 0:00:22]}  Rc1+ {[%clk 0:00:29]} 69. Kb5 {[%clk 0:00:22]}  Kd7 {[%clk 0:00:29]} 70. Rh2 {[%clk 0:00:21]}  Kd6 {[%clk 0:00:28]} 71. Rd2+ {[%clk 0:00:21]}  Ke5 {[%clk 0:00:28]} 72. Kb4 {[%clk 0:00:21]}  Ke4 {[%clk 0:00:27]} 73. Rd8 {[%clk 0:00:21]}  Rb1+ {[%clk 0:00:27]} 74. Kc3 {[%clk 0:00:21]}  Rc1+ {[%clk 0:00:27]} 75. Kd2 {[%clk 0:00:21]}  Rc7 {[%clk 0:00:27]} 76. Rd6 {[%clk 0:00:21]}  Ke5 {[%clk 0:00:27]} 77. Ra6 {[%clk 0:00:21]}  Kd4 {[%clk 0:00:25]} 78. Ra4+ {[%clk 0:00:21]}  Kd5 {[%clk 0:00:25]} 79. Kd3 {[%clk 0:00:21]}  Rh7 {[%clk 0:00:24]} 80. Ra5+ {[%clk 0:00:21]}  Kc6 {[%clk 0:00:24]} 81. Rg5 {[%clk 0:00:21]}  Rh4 {[%clk 0:00:23]} 82. Kc3 {[%clk 0:00:20]}  Rf4 {[%clk 0:00:22]} 83. Re5 {[%clk 0:00:20]}  Kd6 {[%clk 0:00:22]} 84. Re3 {[%clk 0:00:20]}  Kd5 {[%clk 0:00:22]} 85. Rd3+ {[%clk 0:00:21]}  Kc5 {[%clk 0:00:22]} 86. Rh3 {[%clk 0:00:20]}  Rc4+ {[%clk 0:00:22]} 87. Kd3 {[%clk 0:00:20]}  Ra4 {[%clk 0:00:22]} 88. Rh5+ {[%clk 0:00:20]}  Kd6 {[%clk 0:00:22]} 89. Kc3 {[%clk 0:00:19]}  Rf4 {[%clk 0:00:21]} 90. Kd3 {[%clk 0:00:19]}  Rg4 {[%clk 0:00:21]} 91. Ra5 {[%clk 0:00:20]}  Kc6 {[%clk 0:00:20]} 92. Ra6+ {[%clk 0:00:20]}  Kb5 {[%clk 0:00:20]} 93. Rh6 {[%clk 0:00:21]}  Kc5 {[%clk 0:00:19]} 94. Rh5+ {[%clk 0:00:21]}  Kd6 {[%clk 0:00:19]} 95. Ke3 {[%clk 0:00:22]}  Ra4 {[%clk 0:00:19]} 96. Rb5 {[%clk 0:00:21]}  Kc6 {[%clk 0:00:19]} 97. Rb3 {[%clk 0:00:21]}  Kd5 {[%clk 0:00:18]} 98. Rd3+ {[%clk 0:00:22]}  Ke5 {[%clk 0:00:18]} 99. Rc3 {[%clk 0:00:22]}  Re4+ {[%clk 0:00:18]} 100. Kd3 {[%clk 0:00:21]}  Rd4+ {[%clk 0:00:18]} 101. Kc2 {[%clk 0:00:22]}  Rh4 {[%clk 0:00:16]} 102. Rd3 {[%clk 0:00:22]}  Rc4+ {[%clk 0:00:16]} 103. Rc3 {[%clk 0:00:22]}  Rg4 {[%clk 0:00:16]} 104. Rd3 {[%clk 0:00:21]}  Ke4 {[%clk 0:00:16]} 105. Ra3 {[%clk 0:00:21]}  Rg2+ {[%clk 0:00:15]} 106. Kb3 {[%clk 0:00:21]}  Kd4 {[%clk 0:00:14]} 107. Ra4+ {[%clk 0:00:20]}  Kd5 {[%clk 0:00:14]} 108. Rh4 {[%clk 0:00:19]}  Rg3+ {[%clk 0:00:13]} 109. Kb4 {[%clk 0:00:20]}  Rg1 {[%clk 0:00:13]} 1/2-1/2


[Site "https://www.chess.com"]

[Event "Titled Tuesday Blitz May 4 2021"]
[White "Timmermans, Mark"]
[Black "Triapishko, Alexandr"]
[WhiteFideId "1026399"]
[BlackFideId "14122286"]
[WhiteElo "2460"]
[BlackElo "2490"]
[Result "1/2-1/2"]
[Round "06"]
[TimeControl "180+1"]
[Date "2021.05.04"]
[WhiteClock "0:00:17"]
[BlackClock "0:00:05"]

1. b4 {[%clk 0:03:00]}  e5 {[%clk 0:02:41]} 2. Bb2 {[%clk 0:02:58]}  d6 {[%clk 0:02:42]} 3. b5 {[%clk 0:02:58]}  g6 {[%clk 0:02:42]} 4. a4 {[%clk 0:02:59]}  Bg7 {[%clk 0:02:42]} 5. c4 {[%clk 0:02:58]}  Ne7 {[%clk 0:02:42]} 6. e3 {[%clk 0:02:59]}  O-O {[%clk 0:02:42]} 7. Nc3 {[%clk 0:02:59]}  f5 {[%clk 0:02:40]} 8. Nf3 {[%clk 0:02:59]}  f4 {[%clk 0:02:40]} 9. Be2 {[%clk 0:02:56]}  h6 {[%clk 0:02:37]} 10. Qc2 {[%clk 0:02:51]}  g5 {[%clk 0:02:33]} 11. h3 {[%clk 0:02:40]}  Bf5 {[%clk 0:02:28]} 12. Bd3 {[%clk 0:02:33]}  Nd7 {[%clk 0:02:23]} 13. Bxf5 {[%clk 0:02:31]}  Nxf5 {[%clk 0:02:11]} 14. O-O-O {[%clk 0:02:32]}  Nb6 {[%clk 0:02:02]} 15. Nd5 {[%clk 0:02:24]}  c6 {[%clk 0:01:58]} 16. Nxb6 {[%clk 0:02:21]}  axb6 {[%clk 0:01:57]} 17. Kb1 {[%clk 0:02:04]}  Qd7 {[%clk 0:01:46]} 18. Qb3 {[%clk 0:01:47]}  Qf7 {[%clk 0:01:35]} 19. e4 {[%clk 0:01:20]}  Ne7 {[%clk 0:01:30]} 20. d4 {[%clk 0:01:15]}  Ng6 {[%clk 0:01:29]} 21. dxe5 {[%clk 0:01:07]}  dxe5 {[%clk 0:01:27]} 22. Rd6 {[%clk 0:01:04]}  Rfd8 {[%clk 0:01:25]} 23. Rhd1 {[%clk 0:01:03]}  Rxd6 {[%clk 0:01:26]} 24. Rxd6 {[%clk 0:01:04]}  Bf8 {[%clk 0:01:26]} 25. Rd2 {[%clk 0:00:49]}  Qe6 {[%clk 0:01:26]} 26. Nh2 {[%clk 0:00:44]}  h5 {[%clk 0:01:21]} 27. Nf3 {[%clk 0:00:42]}  Be7 {[%clk 0:01:21]} 28. Ne1 {[%clk 0:00:39]}  g4 {[%clk 0:01:13]} 29. hxg4 {[%clk 0:00:38]}  hxg4 {[%clk 0:01:14]} 30. Nd3 {[%clk 0:00:38]}  Rd8 {[%clk 0:01:09]} 31. f3 {[%clk 0:00:39]}  g3 {[%clk 0:01:09]} 32. Kc2 {[%clk 0:00:37]}  Nh4 {[%clk 0:00:54]} 33. Bxe5 {[%clk 0:00:30]}  Rxd3 {[%clk 0:00:54]} 34. Qxd3 {[%clk 0:00:23]}  Qxe5 {[%clk 0:00:53]} 35. bxc6 {[%clk 0:00:24]}  bxc6 {[%clk 0:00:51]} 36. Qd7 {[%clk 0:00:24]}  Qc5 {[%clk 0:00:16]} 37. Qe6+ {[%clk 0:00:24]}  Kf8 {[%clk 0:00:16]} 38. e5 {[%clk 0:00:22]}  Qe3 {[%clk 0:00:09]} 39. Rd6 {[%clk 0:00:20]}  Qe2+ {[%clk 0:00:05]} 40. Rd2 {[%clk 0:00:18]}  Qe3 {[%clk 0:00:06]} 41. Rd6 {[%clk 0:00:18]}  Qe2+ {[%clk 0:00:05]} 42. Rd2 {[%clk 0:00:17]}  Qe3 {[%clk 0:00:05]} 1/2-1/2


[Site "https://www.chess.com"]

[Event "Titled Tuesday Blitz May 4 2021"]
[White "Tokhirjonova, Gulrukhbegim"]
[Black "Zaichenko, Daria"]
[WhiteFideId "14203626"]
[BlackFideId "4197453"]
[WhiteElo "2236"]
[BlackElo "2039"]
[Result "1-0"]
[Round "06"]
[TimeControl "180+1"]
[Date "2021.05.04"]
[WhiteClock "0:01:57"]
[BlackClock "0:01:08"]

1. e4 {[%clk 0:03:00]}  c5 {[%clk 0:02:58]} 2. Nf3 {[%clk 0:03:00]}  Nc6 {[%clk 0:02:58]} 3. Bb5 {[%clk 0:02:59]}  d6 {[%clk 0:02:56]} 4. O-O {[%clk 0:02:58]}  Nf6 {[%clk 0:02:55]} 5. Re1 {[%clk 0:02:57]}  e5 {[%clk 0:02:54]} 6. h3 {[%clk 0:02:54]}  Be7 {[%clk 0:02:54]} 7. c3 {[%clk 0:02:53]}  a6 {[%clk 0:02:53]} 8. Bf1 {[%clk 0:02:49]}  O-O {[%clk 0:02:51]} 9. d4 {[%clk 0:02:48]}  cxd4 {[%clk 0:02:51]} 10. cxd4 {[%clk 0:02:49]}  exd4 {[%clk 0:02:25]} 11. Nxd4 {[%clk 0:02:50]}  Qb6 {[%clk 0:02:25]} 12. Nb3 {[%clk 0:02:44]}  Be6 {[%clk 0:02:23]} 13. Be3 {[%clk 0:02:42]}  Qc7 {[%clk 0:02:23]} 14. Nc3 {[%clk 0:02:42]}  Rad8 {[%clk 0:02:16]} 15. Rc1 {[%clk 0:02:42]}  b5 {[%clk 0:02:14]} 16. Nd5 {[%clk 0:02:41]}  Qb7 {[%clk 0:02:10]} 17. Rxc6 {[%clk 0:02:39]}  Bxd5 {[%clk 0:01:47]} 18. exd5 {[%clk 0:02:39]}  Rc8 {[%clk 0:01:37]} 19. Bg5 {[%clk 0:02:19]}  Nxd5 {[%clk 0:01:31]} 20. Rxc8 {[%clk 0:02:18]}  Rxc8 {[%clk 0:01:25]} 21. Bxe7 {[%clk 0:02:18]}  Nxe7 {[%clk 0:01:25]} 22. Qxd6 {[%clk 0:02:17]}  Nf5 {[%clk 0:01:21]} 23. Qe5 {[%clk 0:02:16]}  g6 {[%clk 0:01:18]} 24. Bd3 {[%clk 0:02:15]}  Ng7 {[%clk 0:01:16]} 25. Qe7 {[%clk 0:02:05]}  Qd5 {[%clk 0:01:12]} 26. Be4 {[%clk 0:02:02]}  Qh5 {[%clk 0:01:09]} 27. Bf3 {[%clk 0:01:59]}  Qf5 {[%clk 0:01:07]} 28. Bg4 {[%clk 0:01:57]}  Qh5 {[%clk 0:01:08]} 29. Bxh5 {[%clk 0:01:57]} 1-0


[Site "https://www.chess.com"]

[Event "Titled Tuesday Blitz May 4 2021"]
[White "Tokman, Ariel"]
[Black "Tejedor Fuente, Enrique"]
[WhiteFideId "117420"]
[BlackFideId "2299100"]
[WhiteElo "2345"]
[BlackElo "2535"]
[Result "0-1"]
[Round "06"]
[TimeControl "180+1"]
[Date "2021.05.04"]
[WhiteClock "0:00:05"]
[BlackClock "0:00:02"]

1. c4 {[%clk 0:02:59]}  b6 {[%clk 0:02:57]} 2. Nc3 {[%clk 0:02:59]}  Bb7 {[%clk 0:02:58]} 3. Nf3 {[%clk 0:02:59]}  Bxf3 {[%clk 0:02:57]} 4. gxf3 {[%clk 0:03:00]}  c5 {[%clk 0:02:58]} 5. e3 {[%clk 0:03:00]}  g6 {[%clk 0:02:58]} 6. Rb1 {[%clk 0:02:59]}  Bg7 {[%clk 0:02:58]} 7. b4 {[%clk 0:02:59]}  Bxc3 {[%clk 0:02:54]} 8. dxc3 {[%clk 0:03:00]}  Nc6 {[%clk 0:02:53]} 9. f4 {[%clk 0:02:57]}  Nf6 {[%clk 0:02:51]} 10. Bg2 {[%clk 0:02:55]}  Rc8 {[%clk 0:02:48]} 11. O-O {[%clk 0:02:53]}  O-O {[%clk 0:02:41]} 12. Qd3 {[%clk 0:02:50]}  d6 {[%clk 0:02:33]} 13. Rd1 {[%clk 0:02:49]}  Qd7 {[%clk 0:02:29]} 14. Bd2 {[%clk 0:02:44]}  Rfd8 {[%clk 0:02:22]} 15. Be1 {[%clk 0:02:42]}  Qf5 {[%clk 0:02:16]} 16. Qxf5 {[%clk 0:02:30]}  gxf5 {[%clk 0:02:17]} 17. f3 {[%clk 0:02:28]}  Nb8 {[%clk 0:01:59]} 18. b5 {[%clk 0:02:13]}  Nbd7 {[%clk 0:01:37]} 19. Bh3 {[%clk 0:02:09]}  e6 {[%clk 0:01:15]} 20. Rxd6 {[%clk 0:02:06]}  Nf8 {[%clk 0:01:15]} 21. Rbd1 {[%clk 0:02:04]}  Rxd6 {[%clk 0:01:10]} 22. Rxd6 {[%clk 0:02:05]}  Ng6 {[%clk 0:01:07]} 23. a4 {[%clk 0:01:55]}  Kf8 {[%clk 0:01:01]} 24. a5 {[%clk 0:01:25]}  Ke7 {[%clk 0:01:01]} 25. Rd2 {[%clk 0:01:21]}  Ne8 {[%clk 0:00:57]} 26. Bf1 {[%clk 0:01:17]}  Nd6 {[%clk 0:00:55]} 27. a6 {[%clk 0:01:11]}  Rg8 {[%clk 0:00:53]} 28. Rg2 {[%clk 0:01:01]}  Rd8 {[%clk 0:00:38]} 29. Be2 {[%clk 0:00:51]}  f6 {[%clk 0:00:22]} 30. h4 {[%clk 0:00:50]}  Kf7 {[%clk 0:00:23]} 31. Kh2 {[%clk 0:00:44]}  h5 {[%clk 0:00:21]} 32. Bf1 {[%clk 0:00:40]}  Rd7 {[%clk 0:00:18]} 33. Rd2 {[%clk 0:00:34]}  Ke7 {[%clk 0:00:17]} 34. Kg3 {[%clk 0:00:33]}  e5 {[%clk 0:00:12]} 35. Rd5 {[%clk 0:00:28]}  Ke6 {[%clk 0:00:08]} 36. Bd2 {[%clk 0:00:15]}  Ne7 {[%clk 0:00:05]} 37. fxe5 {[%clk 0:00:10]}  fxe5 {[%clk 0:00:02]} 38. Rd3 {[%clk 0:00:10]}  e4 {[%clk 0:00:02]} 39. fxe4 {[%clk 0:00:08]}  Nxe4+ {[%clk 0:00:02]} 40. Kf3 {[%clk 0:00:07]}  Rxd3 {[%clk 0:00:03]} 41. Bxd3 {[%clk 0:00:06]}  Nxd2+ {[%clk 0:00:03]} 42. Ke2 {[%clk 0:00:07]}  Nb3 {[%clk 0:00:02]} 43. Kd1 {[%clk 0:00:06]}  Na5 {[%clk 0:00:02]} 44. Ke2 {[%clk 0:00:05]}  Ng6 {[%clk 0:00:02]} 0-1


[Site "https://www.chess.com"]

[Event "Titled Tuesday Blitz May 4 2021"]
[White "Tomb, Maroun"]
[Black "Titichoca Daza, Daniel"]
[WhiteFideId "5300398"]
[BlackFideId "3309550"]
[WhiteElo "2574"]
[BlackElo "1910"]
[Result "1-0"]
[Round "06"]
[TimeControl "180+1"]
[Date "2021.05.04"]
[WhiteClock "0:00:10"]
[BlackClock "0:00:01"]

1. e4 {[%clk 0:02:59]}  c5 {[%clk 0:02:59]} 2. Ne2 {[%clk 0:02:59]}  Nc6 {[%clk 0:03:00]} 3. Nbc3 {[%clk 0:02:59]}  g6 {[%clk 0:02:59]} 4. d4 {[%clk 0:02:59]}  cxd4 {[%clk 0:02:59]} 5. Nxd4 {[%clk 0:03:00]}  Bg7 {[%clk 0:02:59]} 6. Nde2 {[%clk 0:02:59]}  Nf6 {[%clk 0:02:59]} 7. g3 {[%clk 0:03:00]}  O-O {[%clk 0:02:59]} 8. Bg2 {[%clk 0:03:00]}  d6 {[%clk 0:02:58]} 9. O-O {[%clk 0:03:00]}  Rb8 {[%clk 0:02:55]} 10. a4 {[%clk 0:03:00]}  b6 {[%clk 0:02:47]} 11. Nd5 {[%clk 0:02:58]}  Bb7 {[%clk 0:02:46]} 12. c3 {[%clk 0:02:56]}  Nd7 {[%clk 0:02:39]} 13. Nd4 {[%clk 0:02:55]}  Rc8 {[%clk 0:02:33]} 14. Be3 {[%clk 0:02:47]}  Nde5 {[%clk 0:02:19]} 15. Qe2 {[%clk 0:02:43]}  e6 {[%clk 0:02:15]} 16. Nxc6 {[%clk 0:02:41]}  Nxc6 {[%clk 0:02:11]} 17. Nf4 {[%clk 0:02:36]}  Qe7 {[%clk 0:02:09]} 18. Rfd1 {[%clk 0:02:33]}  Ne5 {[%clk 0:01:57]} 19. a5 {[%clk 0:02:30]}  Bc6 {[%clk 0:01:36]} 20. axb6 {[%clk 0:02:27]}  axb6 {[%clk 0:01:37]} 21. Bxb6 {[%clk 0:02:25]}  Qb7 {[%clk 0:01:03]} 22. Bd4 {[%clk 0:02:17]}  Bb5 {[%clk 0:01:01]} 23. Qc2 {[%clk 0:02:11]}  Rfd8 {[%clk 0:00:59]} 24. Ra7 {[%clk 0:02:10]}  Qc6 {[%clk 0:00:59]} 25. h3 {[%clk 0:01:54]}  h5 {[%clk 0:00:55]} 26. Kh2 {[%clk 0:01:53]}  h4 {[%clk 0:00:55]} 27. g4 {[%clk 0:01:52]}  d5 {[%clk 0:00:40]} 28. exd5 {[%clk 0:01:47]}  Qd6 {[%clk 0:00:38]} 29. Kh1 {[%clk 0:01:25]}  exd5 {[%clk 0:00:30]} 30. Bxd5 {[%clk 0:01:09]}  Bc6 {[%clk 0:00:20]} 31. Qe4 {[%clk 0:01:07]}  Bxd5 {[%clk 0:00:19]} 32. Nxd5 {[%clk 0:00:54]}  Qxd5 {[%clk 0:00:19]} 33. Qxd5 {[%clk 0:00:53]}  Rxd5 {[%clk 0:00:20]} 34. Rda1 {[%clk 0:00:46]}  Nf3 {[%clk 0:00:18]} 35. Bxg7 {[%clk 0:00:45]}  Kxg7 {[%clk 0:00:19]} 36. Kg2 {[%clk 0:00:46]}  Ne5 {[%clk 0:00:18]} 37. Re7 {[%clk 0:00:45]}  Kf6 {[%clk 0:00:17]} 38. Raa7 {[%clk 0:00:41]}  Rd2 {[%clk 0:00:17]} 39. g5+ {[%clk 0:00:34]}  Kxg5 {[%clk 0:00:13]} 40. Rxe5+ {[%clk 0:00:34]}  f5 {[%clk 0:00:13]} 41. Rb7 {[%clk 0:00:29]}  Rc2 {[%clk 0:00:11]} 42. Re6 {[%clk 0:00:26]}  Kh5 {[%clk 0:00:08]} 43. Rh7+ {[%clk 0:00:24]}  Kg5 {[%clk 0:00:03]} 44. Rb7 {[%clk 0:00:21]}  Kf4 {[%clk 0:00:01]} 45. Rxg6 {[%clk 0:00:19]}  Rd8 {[%clk 0:00:02]} 46. Rb4+ {[%clk 0:00:14]}  Ke5 {[%clk 0:00:01]} 47. Ra6 {[%clk 0:00:09]}  Rdd2 {[%clk 0:00:01]} 48. Ra5+ {[%clk 0:00:10]} 1-0


[Site "https://www.chess.com"]

[Event "Titled Tuesday Blitz May 4 2021"]
[White "Trent, Lawrence"]
[Black "Nosacheva, Mariya"]
[WhiteFideId "408638"]
[BlackFideId "34111422"]
[WhiteElo "2474"]
[BlackElo "2035"]
[Result "1-0"]
[Round "06"]
[TimeControl "180+1"]
[Date "2021.05.04"]
[WhiteClock "0:00:13"]
[BlackClock "0:00:18"]

1. d4 {[%clk 0:03:00]}  Nf6 {[%clk 0:02:58]} 2. Bg5 {[%clk 0:02:58]}  Ne4 {[%clk 0:02:56]} 3. h4 {[%clk 0:02:58]}  d5 {[%clk 0:02:55]} 4. Nd2 {[%clk 0:02:57]}  Nxg5 {[%clk 0:02:47]} 5. hxg5 {[%clk 0:02:56]}  e5 {[%clk 0:02:41]} 6. dxe5 {[%clk 0:02:55]}  Qxg5 {[%clk 0:02:42]} 7. Ngf3 {[%clk 0:02:55]}  Qd8 {[%clk 0:02:41]} 8. e4 {[%clk 0:02:52]}  dxe4 {[%clk 0:02:40]} 9. Nxe4 {[%clk 0:02:52]}  Qxd1+ {[%clk 0:02:36]} 10. Rxd1 {[%clk 0:02:48]}  Bf5 {[%clk 0:02:37]} 11. Bb5+ {[%clk 0:02:43]}  Nd7 {[%clk 0:02:29]} 12. e6 {[%clk 0:02:04]}  Bxe6 {[%clk 0:02:21]} 13. Nfg5 {[%clk 0:01:57]}  O-O-O {[%clk 0:02:19]} 14. Nxe6 {[%clk 0:01:54]}  fxe6 {[%clk 0:02:19]} 15. Ng5 {[%clk 0:01:49]}  Bd6 {[%clk 0:02:18]} 16. Nf7 {[%clk 0:01:38]}  Rde8 {[%clk 0:02:10]} 17. Nxh8 {[%clk 0:01:36]}  Rxh8 {[%clk 0:02:10]} 18. Bxd7+ {[%clk 0:01:29]}  Kxd7 {[%clk 0:02:09]} 19. Ke2 {[%clk 0:01:30]}  h5 {[%clk 0:02:02]} 20. c4 {[%clk 0:01:22]}  b6 {[%clk 0:01:58]} 21. Rd3 {[%clk 0:01:14]}  Ke7 {[%clk 0:01:58]} 22. Rdh3 {[%clk 0:01:14]}  g6 {[%clk 0:01:47]} 23. g4 {[%clk 0:01:09]}  Rf8 {[%clk 0:01:46]} 24. gxh5 {[%clk 0:01:07]}  gxh5 {[%clk 0:01:47]} 25. Rxh5 {[%clk 0:01:06]}  Rf4 {[%clk 0:01:48]} 26. b3 {[%clk 0:01:05]}  Bc5 {[%clk 0:01:43]} 27. f3 {[%clk 0:01:04]}  a5 {[%clk 0:01:39]} 28. Rh7+ {[%clk 0:01:04]}  Kd6 {[%clk 0:01:37]} 29. R1h4 {[%clk 0:01:00]}  Rf8 {[%clk 0:01:30]} 30. Re4 {[%clk 0:00:58]}  Rf6 {[%clk 0:01:23]} 31. Rg4 {[%clk 0:00:57]}  Kc6 {[%clk 0:01:14]} 32. Rgg7 {[%clk 0:00:56]}  Bd6 {[%clk 0:01:14]} 33. Rg4 {[%clk 0:00:54]}  e5 {[%clk 0:01:05]} 34. Rhg7 {[%clk 0:00:52]}  Rf5 {[%clk 0:01:04]} 35. R7g5 {[%clk 0:00:51]}  Rf8 {[%clk 0:01:03]} 36. Rg8 {[%clk 0:00:49]}  Rf5 {[%clk 0:01:03]} 37. Ke3 {[%clk 0:00:46]}  Kc5 {[%clk 0:01:01]} 38. Ke4 {[%clk 0:00:46]}  Rf6 {[%clk 0:00:59]} 39. R8g6 {[%clk 0:00:45]}  Rf7 {[%clk 0:00:59]} 40. Re6 {[%clk 0:00:39]}  Kb4 {[%clk 0:00:55]} 41. Rg2 {[%clk 0:00:34]}  Rf4+ {[%clk 0:00:53]} 42. Ke3 {[%clk 0:00:34]}  Bc5+ {[%clk 0:00:48]} 43. Ke2 {[%clk 0:00:34]}  Bd6 {[%clk 0:00:47]} 44. Rh6 {[%clk 0:00:29]}  a4 {[%clk 0:00:46]} 45. Rh1 {[%clk 0:00:19]}  Ka3 {[%clk 0:00:40]} 46. bxa4 {[%clk 0:00:15]}  Rxc4 {[%clk 0:00:39]} 47. Kd3 {[%clk 0:00:14]}  Rd4+ {[%clk 0:00:36]} 48. Ke3 {[%clk 0:00:13]}  Kxa4 {[%clk 0:00:34]} 49. Rb1 {[%clk 0:00:12]}  Rf4 {[%clk 0:00:32]} 50. Rc2 {[%clk 0:00:11]}  Bc5+ {[%clk 0:00:31]} 51. Ke2 {[%clk 0:00:11]}  Rh4 {[%clk 0:00:29]} 52. Rb3 {[%clk 0:00:11]}  Rh1 {[%clk 0:00:24]} 53. Rc4+ {[%clk 0:00:10]}  Ka5 {[%clk 0:00:21]} 54. Kd3 {[%clk 0:00:11]}  Rf1 {[%clk 0:00:19]} 55. Ke4 {[%clk 0:00:11]}  Rf2 {[%clk 0:00:19]} 56. a4 {[%clk 0:00:10]}  Re2+ {[%clk 0:00:19]} 57. Kd5 {[%clk 0:00:10]}  Ka6 {[%clk 0:00:19]} 58. Kc6 {[%clk 0:00:11]}  Bd6 {[%clk 0:00:16]} 59. Rb5 {[%clk 0:00:10]}  Ra2 {[%clk 0:00:15]} 60. Rb3 {[%clk 0:00:08]}  Ra3 {[%clk 0:00:15]} 61. Rxa3 {[%clk 0:00:08]}  Bxa3 {[%clk 0:00:15]} 62. Kxc7 {[%clk 0:00:09]}  Bc5 {[%clk 0:00:15]} 63. Kc6 {[%clk 0:00:09]}  Bd4 {[%clk 0:00:16]} 64. Kd5 {[%clk 0:00:08]}  Ka5 {[%clk 0:00:16]} 65. Rxd4 {[%clk 0:00:08]}  exd4 {[%clk 0:00:17]} 66. Kxd4 {[%clk 0:00:09]}  Kxa4 {[%clk 0:00:16]} 67. f4 {[%clk 0:00:10]}  Kb5 {[%clk 0:00:17]} 68. Kd5 {[%clk 0:00:10]}  Kb4 {[%clk 0:00:16]} 69. f5 {[%clk 0:00:10]}  Ka3 {[%clk 0:00:17]} 70. f6 {[%clk 0:00:11]}  b5 {[%clk 0:00:18]} 71. f7 {[%clk 0:00:12]}  b4 {[%clk 0:00:18]} 72. f8=Q {[%clk 0:00:13]}  Ka4 {[%clk 0:00:18]} 73. Kc4 {[%clk 0:00:13]} 1-0


[Site "https://www.chess.com"]